fUST/lending_fUST_20251114
["ID","MTS","AMOUNT","RATE_DAILY","PERIOD"]
[393898864,1763081497471,-219.956893,0.00033,31]
[393898865,1763081497482,-219.956893,0.00033,31]
[393898866,1763081497494,-219.956893,0.00033,31]
[393898867,1763081497506,-219.956893,0.00033,31]
[393898868,1763081497518,-219.956893,0.00033,31]
[393898869,1763081497532,-219.956893,0.00033,31]
[393898870,1763081497543,-219.956893,0.00033,31]
[393898871,1763081504002,185.222,0.00033,34]
[393898872,1763081519717,500.0,0.00032979,7]
[393898873,1763081519852,500.0,0.00032979,7]
[393898874,1763081519893,500.0,0.00032979,7]
[393898875,1763081519946,370.96360944,0.00032979,7]
[393898876,1763081519989,500.0,0.00032979,7]
[393898877,1763081520031,500.0,0.00032979,7]
[393898878,1763081520079,500.0,0.00032979,7]
[393898879,1763081520117,500.0,0.00032979,7]
[393898880,1763081520153,500.0,0.00032979,7]
[393898881,1763081520213,500.0,0.00032979,7]
[393898882,1763081520253,500.0,0.00032979,7]
[393898883,1763081520293,586.0743243,0.00032979,7]
[393898884,1763081520337,500.0,0.00032979,7]
[393898885,1763081520378,500.0,0.00032979,7]
[393898886,1763081520427,500.0,0.00032979,7]
[393898887,1763081520464,272.42159549,0.00032979,7]
[393898888,1763081520506,565.91659711,0.00032979,7]
[393898889,1763081524736,500.0,0.00032973,5]
[393898909,1763081537824,500.0,0.00032979,7]
[393898910,1763081537905,500.0,0.00032979,7]
[393898957,1763081548496,500.0,0.00032979,7]
[393898960,1763081550869,500.0,0.00032979,7]
[393898961,1763081551237,500.0,0.00032979,7]
[393898962,1763081551547,500.0,0.00032979,7]
[393898963,1763081551833,500.0,0.00032979,7]
[393898964,1763081551879,500.0,0.00032979,7]
[393898965,1763081551932,500.0,0.00032979,7]
[393898966,1763081551973,500.0,0.00032979,7]
[393898967,1763081552013,500.0,0.00032979,7]
[393898968,1763081552055,500.0,0.00032979,7]
[393898969,1763081552099,500.0,0.00032979,7]
[393898970,1763081552143,500.0,0.00032979,7]
[393898971,1763081552185,500.0,0.00032979,7]
[393898972,1763081552227,500.0,0.00032979,7]
[393898973,1763081552276,500.0,0.00032979,7]
[393898974,1763081552315,500.0,0.00032979,7]
[393898975,1763081552353,500.0,0.00032979,7]
[393898976,1763081552391,500.0,0.00032979,7]
[393898977,1763081552433,500.0,0.00032979,7]
[393898978,1763081552566,500.0,0.00032979,7]
[393898979,1763081552605,500.0,0.00032979,7]
[393898980,1763081552762,500.0,0.00032979,7]
[393898981,1763081552817,500.0,0.00032979,7]
[393898982,1763081552859,500.0,0.00032979,7]
[393898983,1763081552897,500.0,0.00032979,7]
[393898984,1763081552936,500.0,0.00032979,7]
[393898985,1763081552973,500.0,0.00032979,7]
[393898986,1763081553017,500.0,0.00032979,7]
[393898987,1763081553062,500.0,0.00032979,7]
[393898988,1763081553109,500.0,0.00032979,7]
[393898989,1763081553152,500.0,0.00032979,7]
[393898990,1763081553189,500.0,0.00032979,7]
[393898991,1763081553230,500.0,0.00032979,7]
[393898992,1763081553272,500.0,0.00032979,7]
[393898994,1763081553310,500.0,0.00032979,7]
[393898995,1763081553351,500.0,0.00032979,7]
[393898996,1763081553389,500.0,0.00032979,7]
[393898997,1763081553429,500.0,0.00032979,7]
[393898998,1763081553464,500.0,0.00032979,7]
[393898999,1763081553504,244.55104284,0.00032979,7]
[393899000,1763081553570,500.0,0.00032979,7]
[393899002,1763081553611,500.0,0.00032979,7]
[393899003,1763081553651,500.0,0.00032979,7]
[393899019,1763081559051,150.0,0.00028943,2]
[393899023,1763081559482,216.02,0.00031574,2]
[393899025,1763081563116,500.0,0.00032979,7]
[393899026,1763081563156,500.0,0.00032979,7]
[393899041,1763081623122,500.0,0.00032899,4]
[393899042,1763081623354,500.0,0.00032989,4]
[393899043,1763081623596,500.0,0.00032989,4]
[393899044,1763081623846,500.0,0.00032989,4]
[393899045,1763081624090,500.0,0.00032989,4]
[393899046,1763081624407,521.12943612,0.00032989,4]
[393899048,1763081638930,150.0,0.00028936,2]
[393899049,1763081639367,206.71,0.00031567,2]
[393899051,1763081685802,-150.0,0.0002589,2]
[393899057,1763081708898,151.0,0.00039584,30]
[393899058,1763081709519,156.587,0.00039584,120]
[393899059,1763081710151,162.380719,0.00039584,30]
[393899060,1763081710764,168.3888056,0.00039584,120]
[393899061,1763081711384,174.61919141,0.00039584,120]
[393899062,1763081712010,181.08010149,0.00039584,30]
[393899063,1763081712621,187.78006525,0.00039584,120]
[393899064,1763081713310,194.72792766,0.00039584,30]
[393899065,1763081713910,201.93286099,0.00039584,120]
[393899066,1763081715185,209.40437684,0.00039584,20]
[393899067,1763081715816,217.15233878,0.00039584,20]
[393899068,1763081716531,225.18697532,0.00039584,20]
[393899069,1763081717312,233.51889341,0.00039584,20]
[393899070,1763081718114,242.15909246,0.00039584,20]
[393899071,1763081718719,251.11897888,0.00039584,20]
[393899072,1763081719391,260.4103811,0.00039584,20]
[393899073,1763081720128,270.0455652,0.00039584,20]
[393899074,1763081720657,280.03725112,0.00039584,20]
[393899075,1763081721296,290.39862941,0.00039584,20]
[393899076,1763081721925,290.39862941,0.00039584,20]
[393899078,1763081780596,200.0,0.00039584,30]
[393899108,1763082014472,151.0,0.00039582,120]
[393899109,1763082014991,156.587,0.00039582,120]
[393899110,1763082015590,162.380719,0.00039582,120]
[393899111,1763082016230,168.3888056,0.00039582,120]
[393899112,1763082017414,174.61919141,0.00039582,120]
[393899113,1763082018084,181.08010149,0.00039582,120]
[393899114,1763082018714,187.78006525,0.00039582,120]
[393899115,1763082019358,194.72792766,0.00039582,120]
[393899116,1763082020179,201.93286099,0.00039582,120]
[393899117,1763082020860,209.40437684,0.00039582,120]
[393899118,1763082021468,217.15233878,0.00039582,120]
[393899119,1763082022166,225.18697532,0.00039582,120]
[393899120,1763082023894,233.51889341,0.00039582,120]
[393899121,1763082024423,242.15909246,0.00039582,120]
[393899122,1763082025083,251.11897888,0.00039582,120]
[393899123,1763082025707,260.4103811,0.00039582,120]
[393899124,1763082026326,270.0455652,0.00039582,120]
[393899125,1763082027072,280.03725112,0.00039582,120]
[393899126,1763082027716,290.39862941,0.00039582,120]
[393899127,1763082028388,290.39862941,0.00039582,120]
[393899129,1763082080894,200.0,0.00039582,30]
[393899161,1763082226358,150.0,0.00024085,30]
[393899162,1763082226737,150.0,0.00026275,30]
[393899164,1763082241464,-150.0,0.00028464,30]
[393899165,1763082243355,189.4,0.0002759,2]
[393899168,1763082304077,150.0,0.00024679,30]
[393899169,1763082304502,150.0,0.00026922,30]
[393899171,1763082313109,151.0,0.00039583,120]
[393899172,1763082314005,156.587,0.00039583,120]
[393899173,1763082314874,162.380719,0.00039583,120]
[393899174,1763082315541,168.3888056,0.00039583,120]
[393899175,1763082316187,174.61919141,0.00039583,120]
[393899176,1763082316795,181.08010149,0.00039583,120]
[393899177,1763082317418,187.78006525,0.00039583,120]
[393899178,1763082318151,194.72792766,0.00039583,120]
[393899179,1763082318693,201.93286099,0.00039583,120]
[393899180,1763082319307,209.40437684,0.00039583,120]
[393899181,1763082319942,217.15233878,0.00039583,120]
[393899182,1763082321022,225.18697532,0.00039583,120]
[393899183,1763082321645,233.51889341,0.00039583,120]
[393899184,1763082322267,242.15909246,0.00039583,120]
[393899185,1763082322897,251.11897888,0.00039583,120]
[393899186,1763082323692,260.4103811,0.00039583,120]
[393899187,1763082324340,270.0455652,0.00039583,120]
[393899188,1763082324972,280.03725112,0.00039583,120]
[393899189,1763082325684,290.39862941,0.00039583,120]
[393899190,1763082326296,290.39862941,0.00039583,120]
[393899200,1763082379908,200.0,0.00039583,30]
[393899201,1763082381946,150.0,0.00024018,30]
[393899202,1763082382222,150.0,0.00026202,30]
[393899210,1763082458433,205.0,0.0003288,120]
[393899211,1763082462483,150.0,0.00024623,30]
[393899212,1763082462928,150.0,0.00026861,30]
[393899216,1763082497660,534.27,0.000255,14]
[393899217,1763082540124,150.0,0.00024115,30]
[393899218,1763082540426,150.0,0.00026307,30]
[393899224,1763082566143,-287.92288052,0.00028371,2]
[393899225,1763082566166,-150.0,0.00028499,30]
[393899226,1763082566189,-150.0,0.00028939,2]
[393899227,1763082566211,-150.0,0.00030691,30]
[393899228,1763082566232,-506.33882396,0.0003141,2]
[393899229,1763082566252,-297.94417901,0.0003141,2]
[393899230,1763082566274,-163.26,0.00031657,2]
[393899231,1763082566297,-402.19546952,0.00031727,2]
[393899232,1763082566317,-160.0,0.00032118,2]
[393899233,1763082566338,-895.17939883,0.00032156,2]
[393899234,1763082566357,-459.65196517,0.00032339,2]
[393899235,1763082566377,-900.15790926,0.00032405,2]
[393899236,1763082566398,-217.88482549,0.00032668,6]
[393899237,1763082566421,-174.93,0.00032884,30]
[393899240,1763082584919,634.77017742,0.00032599,6]
[393899242,1763082586558,200.0,0.00032596,15]
[393899243,1763082589883,744.591764,0.00032596,2]
[393899245,1763082593955,506.68348791,0.00030876,2]
[393899252,1763082612701,151.0,0.00039583,120]
[393899255,1763082613330,156.587,0.00039583,120]
[393899256,1763082613931,162.380719,0.00039583,120]
[393899257,1763082614577,168.3888056,0.00039583,120]
[393899259,1763082615216,174.61919141,0.00039583,120]
[393899260,1763082615836,181.08010149,0.00039583,120]
[393899261,1763082616580,187.78006525,0.00039583,120]
[393899262,1763082617104,150.0,0.00024058,30]
[393899263,1763082617532,150.0,0.00026245,30]
[393899264,1763082617578,194.72792766,0.00039583,120]
[393899265,1763082618214,201.93286099,0.00039583,120]
[393899266,1763082618863,209.40437684,0.00039583,120]
[393899267,1763082619508,217.15233878,0.00039583,120]
[393899269,1763082620638,225.18697532,0.00039583,120]
[393899270,1763082621296,233.51889341,0.00039583,120]
[393899271,1763082621900,242.15909246,0.00039583,120]
[393899272,1763082622523,251.11897888,0.00039583,120]
[393899273,1763082623172,260.4103811,0.00039583,120]
[393899274,1763082623794,270.0455652,0.00039583,120]
[393899276,1763082624923,280.03725112,0.00039583,120]
[393899277,1763082625551,290.39862941,0.00039583,120]
[393899278,1763082626162,290.39862941,0.00039583,120]
[393899300,1763082632439,-150.0,0.00028432,30]
[393899301,1763082632448,-113.05441659,0.00028973,2]
[393899302,1763082632459,-36.94558341,0.00028973,2]
[393899303,1763082632468,-150.0,0.0003062,30]
[393899304,1763082632477,-24.50984495,0.00030876,2]
[393899305,1763082632487,-150.0,0.00031607,2]
[393899306,1763082632497,-150.0,0.00032807,30]
[393899307,1763082632506,-531.19333286,0.00032927,2]
[393899308,1763082632516,-1554.0,0.00033008,3]
[393899309,1763082632525,-300.0,0.00033009,3]
[393899310,1763082632535,-400.0,0.00033009,3]
[393899311,1763082632544,-300.0,0.00033009,3]
[393899312,1763082632553,-875.0,0.00033009,3]
[393899313,1763082632563,-400.0,0.00033009,2]
[393899314,1763082632573,-3433.52040382,0.0003301,3]
[393899315,1763082632582,-169.066413,0.00033165,2]
[393899316,1763082632592,-337.17640039,0.00033261,7]
[393899317,1763082632601,-1177.49013121,0.00033949,2]
[393899318,1763082632611,-288.73765403,0.0003396,2]
[393899319,1763082632620,-160.0,0.00033962,3]
[393899320,1763082632628,-5081.68522134,0.0003398,2]
[393899321,1763082632638,-185.222,0.0003398,37]
[393899322,1763082632647,-200.0,0.00034,120]
[393899323,1763082632656,-157.0,0.00034,60]
[393899324,1763082632666,-500.0,0.00034073,5]
[393899325,1763082632675,-500.0,0.00034073,5]
[393899326,1763082632687,-500.0,0.00034073,5]
[393899327,1763082632695,-160.0,0.00034079,2]
[393899328,1763082632704,-9941.34,0.000341,14]
[393899329,1763082632713,-203.35,0.0003424,2]
[393899330,1763082632722,-1000.0,0.00034621,5]
[393899331,1763082632731,-1000.0,0.00034621,5]
[393899332,1763082632740,-260.0,0.00034627,2]
[393899333,1763082632749,-159.86611592,0.00034973,5]
[393899334,1763082632758,-344.85044087,0.00034973,5]
[393899335,1763082632768,-500.0,0.00034973,5]
[393899336,1763082632777,-500.0,0.00034973,5]
[393899337,1763082632787,-531.19333286,0.00034977,2]
[393899338,1763082632796,-174.3,0.00034994,30]
[393899339,1763082632805,-308.04684394,0.00034999,7]
[393899340,1763082632815,-500.0,0.00034999,7]
[393899341,1763082632824,-500.0,0.00034999,7]
[393899342,1763082632833,-500.0,0.00034999,7]
[393899343,1763082632843,-500.0,0.00034999,7]
[393899344,1763082632853,-500.0,0.00034999,7]
[393899345,1763082632862,-516.08621985,0.00034999,7]
[393899346,1763082632872,-10721.07276464,0.00035,2]
[393899347,1763082632881,-206.41024338,0.00035,120]
[393899348,1763082632890,-160.0,0.00035,14]
[393899349,1763082632900,-1007.17134295,0.00035,30]
[393899350,1763082632910,-658.04106808,0.00035,2]
[393899351,1763082632919,-215.69762192,0.00035,30]
[393899352,1763082632930,-157.0,0.00035,90]
[393899353,1763082632939,-157.0,0.00035,60]
[393899354,1763082632948,-161.34555757,0.00035,45]
[393899355,1763082632958,-1527.10695619,0.00035168,5]
[393899356,1763082632968,-500.0,0.00035168,5]
[393899357,1763082632978,-360.0,0.00035174,2]
[393899358,1763082632988,-500.0,0.00035442,5]
[393899359,1763082632997,-560.0,0.00035466,2]
[393899360,1763082633006,-1000.0,0.00035521,5]
[393899361,1763082633015,-164.84,0.000356,7]
[393899362,1763082633024,-160.81857193,0.00035616,5]
[393899363,1763082633037,-173.32348452,0.00035616,2]
[393899364,1763082633048,-500.0,0.00035673,5]
[393899365,1763082633057,-9941.34,0.000357,14]
[393899366,1763082633066,-460.0,0.00035722,2]
[393899367,1763082633075,-405.16968812,0.0003584,6]
[393899368,1763082633084,-500.0,0.00035973,5]
[393899369,1763082633093,-504.39211601,0.00035973,5]
[393899370,1763082633103,-500.0,0.00035973,5]
[393899371,1763082633112,-559.4,0.0003598,10]
[393899372,1763082633120,-727.84,0.0003598,10]
[393899373,1763082633130,-606.53,0.0003598,10]
[393899374,1763082633140,-873.4,0.00035989,10]
[393899375,1763082633149,-31022.1837507,0.0003599,3]
[393899376,1763082633159,-765.2856799,0.0003599,3]
[393899377,1763082633168,-180.23750522,0.00035999,15]
[393899378,1763082633179,-228.60150466,0.00035999,15]
[393899379,1763082633188,-500.0,0.00035999,7]
[393899380,1763082633197,-375.23565988,0.00035999,7]
[393899381,1763082633206,-504.62,0.00036,15]
[393899382,1763082633215,-200.0,0.00036,120]
[393899383,1763082633225,-25796.87197742,0.00036,30]
[393899392,1763082639256,-883.66581491,0.00036,30]
[393899393,1763082639267,-157.0,0.00036,120]
[393899394,1763082639276,-204.2357907,0.0003621,2]
[393899395,1763082639286,-1000.0,0.00036221,5]
[393899396,1763082639296,-560.0,0.0003627,2]
[393899397,1763082639306,-160.0,0.00036293,4]
[393899398,1763082639315,-160.0,0.00036293,5]
[393899399,1763082639324,-281.31859545,0.000365,120]
[393899400,1763082639333,-775.0,0.00036667,10]
[393899401,1763082639342,-518.75298684,0.00036768,5]
[393899402,1763082639352,-248.19512395,0.000368,120]
[393899403,1763082639361,-660.0,0.00036818,2]
[393899404,1763082639370,-220.71,0.00036837,3]
[393899405,1763082639379,-662.15,0.00036841,3]
[393899406,1763082639389,-882.84,0.00036847,3]
[393899407,1763082639399,-441.42,0.00036851,3]
[393899408,1763082639408,-153.03,0.00036852,60]
[393899409,1763082639417,-152.82,0.00036857,60]
[393899410,1763082639427,-152.82,0.00036857,60]
[393899411,1763082639440,-1765.68,0.00036861,3]
[393899412,1763082639449,-150.31,0.00036868,60]
[393899413,1763082639459,-159.32,0.00036871,60]
[393899414,1763082639469,-271.13,0.00036874,2]
[393899415,1763082639479,-150.42,0.00036874,60]
[393899416,1763082639487,-153.03,0.00036952,60]
[393899417,1763082639497,-150.31,0.00036968,60]
[393899418,1763082639508,-159.32,0.00036971,60]
[393899419,1763082639517,-150.42,0.00036974,60]
[393899420,1763082639526,-508.0,0.00037,120]
[393899421,1763082639535,-237.16745803,0.00037,14]
[393899422,1763082639544,-935.247144,0.00037,20]
[393899423,1763082639553,-157.0,0.00037,120]
[393899424,1763082639562,-531.19333286,0.00037027,2]
[393899425,1763082639571,-153.03,0.00037052,60]
[393899426,1763082639580,-150.31,0.00037068,60]
[393899427,1763082639589,-159.32,0.00037071,60]
[393899428,1763082639598,-150.42,0.00037074,60]
[393899429,1763082639607,-153.03,0.00037152,60]
[393899430,1763082639617,-150.31,0.00037168,60]
[393899431,1763082639626,-159.32593588,0.00037171,60]
[393899432,1763082639635,-150.42,0.00037174,60]
[393899433,1763082639656,-203.35,0.00037181,30]
[393899434,1763082639666,-164.84,0.000372,7]
[393899435,1763082639676,-635.89683194,0.00037231,2]
[393899436,1763082639689,-244.53036178,0.00037231,2]
[393899437,1763082639698,-153.03,0.00037252,60]
[393899438,1763082639708,-150.31,0.00037268,60]
[393899439,1763082639717,-150.42,0.00037274,60]
[393899440,1763082639727,-3972.51501968,0.000373,2]
[393899441,1763082639736,-153.03,0.00037352,60]
[393899442,1763082639747,-627.43556714,0.00037366,2]
[393899443,1763082639757,-150.31,0.00037368,60]
[393899444,1763082639767,-504.09614537,0.00037373,5]
[393899445,1763082639776,-150.42,0.00037374,60]
[393899446,1763082639786,-205.587715,0.0003739,31]
[393899447,1763082639796,-151.0,0.0003739,31]
[393899448,1763082639806,-151.0,0.0003739,31]
[393899449,1763082639816,-5578.30015848,0.0003739,3]
[393899450,1763082639830,-1688.38992111,0.0003739,3]
[393899451,1763082639842,-8409.62138,0.0003739,3]
[393899452,1763082639853,-15345.87229111,0.0003739,3]
[393899453,1763082639863,-765.2856799,0.0003739,3]
[393899454,1763082639873,-4690.11008871,0.000374,14]
[393899464,1763082643728,-5019.57120261,0.000374,14]
[393899466,1763082643949,-231.65870868,0.000374,14]
[393899467,1763082643959,-249.5,0.000374,30]
[393899468,1763082643969,-89.92919092,0.000374,31]
[393899482,1763082646700,-151.0,0.000374,31]
[393899483,1763082646793,-158.217985,0.000374,31]
[393899484,1763082646802,-151.0,0.000374,31]
[393899485,1763082646812,-151.0,0.000374,31]
[393899486,1763082646821,-151.0,0.000374,31]
[393899487,1763082646831,-151.0,0.000374,31]
[393899488,1763082646842,-53.78866836,0.000374,31]
[393899489,1763082646853,-493.87054964,0.000374,31]
[393899490,1763082646863,-547.659218,0.000374,31]
[393899491,1763082646871,-289.64330236,0.000374,31]
[393899492,1763082646980,-258.01591564,0.000374,31]
[393899493,1763082646990,-547.659218,0.000374,31]
[393899494,1763082646999,-151.0,0.000374,15]
[393899495,1763082647009,-151.0,0.000374,15]
[393899496,1763082647019,-153.648193,0.000374,31]
[393899497,1763082647028,-151.0,0.000374,31]
[393899498,1763082647037,-151.0,0.000374,31]
[393899499,1763082647046,-151.0,0.000374,31]
[393899500,1763082647056,-151.0,0.000374,31]
[393899501,1763082647065,-151.0,0.000374,31]
[393899502,1763082647074,-151.0,0.000374,31]
[393899503,1763082647083,-151.0,0.000374,31]
[393899504,1763082647092,-151.0,0.000374,31]
[393899505,1763082647101,-151.0,0.000374,31]
[393899506,1763082647110,-151.0,0.000374,2]
[393899507,1763082647120,-151.0,0.000374,31]
[393899508,1763082647130,-151.0,0.000374,31]
[393899509,1763082647139,-151.0,0.000374,31]
[393899510,1763082647148,-151.0,0.000374,31]
[393899511,1763082647158,-151.0,0.000374,31]
[393899512,1763082647166,-151.0,0.000374,31]
[393899513,1763082647175,-151.0,0.000374,31]
[393899514,1763082647184,-151.0,0.000374,31]
[393899515,1763082647195,-151.0,0.000374,30]
[393899516,1763082647205,-301.999999,0.000374,31]
[393899517,1763082647214,-151.0,0.000374,31]
[393899518,1763082647225,-151.0,0.000374,7]
[393899519,1763082647235,-151.0,0.000374,7]
[393899520,1763082647244,-151.0,0.000374,31]
[393899521,1763082647253,-151.0,0.000374,31]
[393899522,1763082647263,-151.0,0.000374,31]
[393899523,1763082647273,-187.004028,0.000374,31]
[393899524,1763082647282,-151.0,0.000374,31]
[393899525,1763082647291,-187.004028,0.000374,31]
[393899526,1763082647300,-187.004028,0.000374,31]
[393899527,1763082647309,-187.004028,0.000374,31]
[393899528,1763082647318,-151.0,0.000374,28]
[393899529,1763082647327,-151.0,0.000374,31]
[393899530,1763082647336,-153.06,0.00037452,60]
[393899531,1763082647345,-150.31,0.00037468,60]
[393899532,1763082647355,-150.42,0.00037474,60]
[393899533,1763082647364,-16.60984852,0.0003748,30]
[393899539,1763082680400,200.0,0.00039583,30]
[393899540,1763082691706,150.0,0.00023446,30]
[393899541,1763082692114,150.0,0.00025577,30]
[393899550,1763082733424,20000.0,0.00039583,30]
[393899552,1763082757641,253.34,0.00039583,20]
[393899553,1763082765444,211.76456697,0.00025243,2]
[393899554,1763082765537,150.0,0.00024216,30]
[393899555,1763082765943,150.0,0.00026417,30]
[393899556,1763082767714,500.0,0.00039583,20]
[393899558,1763082773185,176.799655,0.00013699,2]
[393899559,1763082773411,176.799655,0.00020187,2]
[393899560,1763082774127,-176.799655,0.00026676,2]
[393899561,1763082782692,500.0,0.00039583,20]
[393899562,1763082796365,-318.67167969,0.00025243,2]
[393899563,1763082797896,-20.28248832,0.00025243,2]
[393899566,1763082838798,150.0,0.00024429,30]
[393899567,1763082839233,150.0,0.0002665,30]
[393899569,1763082882349,20000.0,0.00039582,30]
[393899571,1763082908928,151.0,0.00039582,30]
[393899572,1763082909569,156.587,0.00039582,30]
[393899573,1763082910235,162.380719,0.00039582,30]
[393899574,1763082910860,168.3888056,0.00039582,30]
[393899575,1763082911583,174.61919141,0.00039582,30]
[393899576,1763082912107,181.08010149,0.00039582,30]
[393899577,1763082912167,150.0,0.00023579,30]
[393899578,1763082912819,150.0,0.00025723,30]
[393899579,1763082912851,187.78006525,0.00039582,30]
[393899580,1763082912883,-150.0,0.0002589,2]
[393899581,1763082913378,194.72792766,0.00039582,30]
[393899582,1763082913999,201.93286099,0.00039582,30]
[393899583,1763082914640,209.40437684,0.00039582,30]
[393899584,1763082915287,217.15233878,0.00039582,30]
[393899585,1763082915923,225.18697532,0.00039582,30]
[393899586,1763082916536,233.51889341,0.00039582,30]
[393899587,1763082917175,242.15909246,0.00039582,30]
[393899588,1763082917827,251.11897888,0.00039582,30]
[393899589,1763082918455,260.4103811,0.00039582,30]
[393899590,1763082919099,270.0455652,0.00039582,30]
[393899591,1763082919722,280.03725112,0.00039582,30]
[393899592,1763082920334,290.39862941,0.00039582,30]
[393899593,1763082921013,290.39862941,0.00039582,30]
[393899605,1763082980807,200.0,0.00039582,30]
[393899608,1763082984057,150.0,0.0002325,30]
[393899609,1763082984478,150.0,0.00025363,30]
[393899610,1763082985189,-150.0,0.00027477,30]
[393899613,1763083053383,150.0,0.00023548,30]
[393899614,1763083053881,150.0,0.00025688,30]
[393899618,1763083122778,150.0,0.00024185,30]
[393899623,1763083191408,150.0,0.00025748,30]
[393899627,1763083217441,151.0,0.00039593,30]
[393899628,1763083218089,156.587,0.00039593,30]
[393899629,1763083218701,162.380719,0.00039593,30]
[393899630,1763083219335,168.3888056,0.00039593,30]
[393899631,1763083219941,174.61919141,0.00039593,30]
[393899632,1763083220028,150.0,0.0002589,2]
[393899633,1763083220719,181.08010149,0.00039593,30]
[393899634,1763083221322,187.78006525,0.00039593,30]
[393899635,1763083221976,194.72792766,0.00039593,30]
[393899636,1763083222572,201.93286099,0.00039593,30]
[393899637,1763083223272,209.40437684,0.00039593,30]
[393899638,1763083223944,217.15233878,0.00039593,30]
[393899639,1763083224548,225.18697532,0.00039593,30]
[393899640,1763083225181,233.51889341,0.00039593,30]
[393899641,1763083225794,242.15909246,0.00039593,30]
[393899642,1763083226421,251.11897888,0.00039593,30]
[393899643,1763083227046,260.4103811,0.00039593,30]
[393899644,1763083227672,270.0455652,0.00039593,30]
[393899645,1763083228305,280.03725112,0.00039593,30]
[393899646,1763083228914,290.39862941,0.00039593,30]
[393899647,1763083229513,290.39862941,0.00039593,30]
[393899648,1763083230195,-177.0,0.0002789,2]
[393899649,1763083230218,-193.41320825,0.00028657,2]
[393899650,1763083232306,-160.25571579,0.00028657,2]
[393899654,1763083260194,-449.86321477,0.00027914,2]
[393899655,1763083260216,-42.42267091,0.00028757,2]
[393899656,1763083263499,-153.69643813,0.00028757,2]
[393899668,1763083279824,200.0,0.00039593,30]
[393899685,1763083514222,151.0,0.00039593,30]
[393899686,1763083514878,156.587,0.00039593,30]
[393899687,1763083515501,162.380719,0.00039593,30]
[393899688,1763083516153,168.3888056,0.00039593,30]
[393899689,1763083516766,174.61919141,0.00039593,30]
[393899690,1763083517416,181.08010149,0.00039593,30]
[393899691,1763083518036,187.78006525,0.00039593,30]
[393899692,1763083518743,194.72792766,0.00039593,30]
[393899693,1763083519345,201.93286099,0.00039593,30]
[393899694,1763083519960,209.40437684,0.00039593,30]
[393899695,1763083520570,217.15233878,0.00039593,30]
[393899696,1763083521192,225.18697532,0.00039593,30]
[393899697,1763083521817,233.51889341,0.00039593,30]
[393899698,1763083522448,242.15909246,0.00039593,30]
[393899699,1763083523073,251.11897888,0.00039593,30]
[393899700,1763083523714,260.4103811,0.00039593,30]
[393899701,1763083524402,270.0455652,0.00039593,30]
[393899702,1763083525046,280.03725112,0.00039593,30]
[393899703,1763083525644,290.39862941,0.00039593,30]